bitfinex-derivatives/quotes_ETHF0:USTF0_20250602
["timestamp","ask_amount","ask_price","bid_price","bid_amount"]
[1748857119144,2.15015,2485.0,2484.9,0.80447]
[1748857119644,1.3457,2485.0,2484.9,0.80447]
[1748857119940,0.7308,2485.1,2485.0,0.80445]
[1748857120132,5.30512,2485.4,2485.3,0.80435]
[1748857120535,1.293,2485.4,2485.3,0.80435]
[1748857121347,1.293,2485.4,2485.0,4.396]
[1748857121541,0.80437,2485.3,2485.2,0.80435]
[1748857121942,1.293,2485.3,2485.2,0.80435]
[1748857123352,1.5522,2485.6,2485.5,0.80429]
[1748857123353,2.35648,2485.6,2485.5,0.80429]
[1748857123549,22.87308,2485.6,2485.5,0.80429]
[1748857124047,0.80437,2485.3,2485.2,0.80436]
[1748857124249,0.80432,2485.5,2485.4,0.80431]
[1748857124450,0.80434,2485.4,2485.3,0.80433]
[1748857125239,1.3376,2485.5,2485.1,2.01104]
[1748857125453,2.14191,2485.5,2485.4,0.80432]
[1748857125749,2.14189,2485.5,2485.4,0.80432]
[1748857126142,0.80436,2485.4,2485.3,0.80435]
[1748857126349,2.17306,2485.4,2485.3,0.80435]
[1748857126744,1.3687,2485.4,2484.8,7.17964305]
[1748857126949,0.8044,2485.2,2485.1,0.80439]
[1748857127350,0.80438,2485.3,2485.2,0.80436]
[1748857127551,2.17308,2485.3,2485.2,0.80436]
[1748857127853,3.2078,2485.7,2484.9,5.6998]
[1748857128049,2.17301,2485.5,2485.4,0.8043]
[1748857128949,1.3687,2485.5,2485.4,0.8043]
[1748857129261,19.176,2485.6,2485.5,0.80429]
[1748857129550,3.9524,2485.7,2485.6,0.80426]
[1748857129955,3.2078,2485.7,2485.5,0.80427]
[1748857130148,1.2887,2485.6,2485.5,0.80427]
[1748857130455,0.80431,2485.5,2485.4,0.80429]
[1748857130854,2.09298,2485.6,2485.5,0.80429]
[1748857131047,3.9353,2485.7,2485.6,0.80426]
[1748857131048,4.73953,2485.7,2485.6,0.80426]
[1748857131252,0.7275,2485.7,2485.6,0.80426]
[1748857131850,0.80422,2485.8,2485.7,0.80423]
[1748857132159,1.2887,2485.9,2485.8,0.80419]
[1748857132652,3.2078,2486.1,2486.0,0.80413]
[1748857132850,3.18205946,2486.4,2486.2,0.80406]
[1748857132851,2.38654459,2486.3,2486.2,0.80406]
[1748857133352,4.01182,2486.4,2486.3,0.80403]
[1748857133852,0.80403,2486.3,2486.2,0.80404]
[1748857134052,0.80403,2486.3,2485.9,4.17519]
[1748857134053,5.3703,2486.4,2486.3,0.80403]
[1748857134556,0.80404,2486.3,2486.2,0.80404]
[1748857134853,0.80413,2486.0,2485.9,5.99733]
[1748857135045,2.01008,2486.3,2485.9,5.99733]
[1748857135046,0.80412,2486.1,2486.0,0.80412]
[1748857135251,0.80413,2486.0,2485.9,0.80415]
[1748857135448,1.2868,2486.0,2485.8,0.00603367]
[1748857135649,1.2868,2486.0,2485.9,0.80416]
[1748857136354,0.7618,2486.1,2486.0,0.80413]
[1748857136656,1.5659,2486.1,2486.0,0.80413]
[1748857136955,2.8527,2486.1,2486.0,0.80413]
[1748857137357,0.80415,2486.0,2485.9,0.80415]
[1748857137556,2.09095,2486.0,2485.9,0.80415]
[1748857137951,1.2868,2486.0,2485.9,0.80415]
[1748857138449,0.80408,2486.2,2486.1,0.80408]
[1748857138849,0.80407,2486.2,2486.1,0.80407]
[1748857139457,0.80416,2486.0,2485.9,0.80415]
[1748857140355,0.80416,2485.9,2485.8,0.81020367]
[1748857140557,2.16676,2485.9,2485.8,0.00603367]
[1748857141952,2.16676,2485.9,2485.8,0.81022367]
[1748857142361,2.16676,2485.9,2485.8,0.00603367]
[1748857142953,0.80435,2485.3,2485.2,5.1404]
[1748857143160,3.2078,2485.5,2485.2,5.1404]
[1748857143355,0.80431,2485.5,2485.4,0.80432]
[1748857143656,0.80435,2485.4,2485.3,0.80434]
[1748857143852,0.80435,2485.3,2485.2,5.94475]
[1748857144256,0.00599233,2485.5,2485.4,0.80432]
[1748857144563,0.80435,2485.4,2485.2,5.1404]
[1748857144752,0.80435,2485.3,2485.2,4.378]
[1748857144955,3.21379233,2485.5,2485.4,0.80432]
[1748857145854,0.80434,2485.4,2485.3,0.80433]
[1748857146158,2.14994,2485.4,2485.3,0.80433]
[1748857146360,2.14994,2485.4,2485.3,0.80435]
[1748857147356,1.3456,2485.4,2485.3,0.80435]
[1748857147557,0.00599233,2485.5,2485.4,0.80432]
[1748857148657,0.80441,2485.2,2485.1,5.1834]
[1748857148863,2.89805,2485.4,2485.3,0.80435]
[1748857149556,2.0937,2485.4,2485.3,0.80435]
[1748857152870,2.89802,2485.4,2485.3,0.80435]
[1748857153165,2.89805,2485.4,2485.3,0.80435]
[1748857153664,2.0937,2485.4,2485.0,3.94743367]
[1748857154065,0.8044,2485.2,2485.1,0.8044]
[1748857154260,0.80442,2485.1,2485.0,3.21383367]
[1748857154567,2.19112,2485.1,2485.0,3.21383367]
[1748857154759,2.19112,2485.1,2485.0,4.01828367]
[1748857154955,2.19112,2485.1,2485.0,0.00603367]
[1748857155558,2.19112,2485.1,2485.0,0.81048367]
[1748857155868,2.19112,2485.1,2485.0,0.00603367]
[1748857156166,2.19112,2485.1,2485.0,0.81048367]
[1748857157160,2.19112,2485.1,2485.0,0.00603367]
[1748857157467,0.80458,2484.6,2484.5,1.20244864]
[1748857157662,0.80461,2484.5,2484.4,1.20244864]
[1748857157864,19.168,2484.6,2484.2,2.40991215]
[1748857158066,0.7824,2484.9,2484.4,5.2194]
[1748857158265,19.168,2484.8,2484.5,0.7416]
[1748857158562,19.168,2484.8,2484.7,0.80455]
[1748857159364,19.97252,2484.8,2484.7,0.80455]
[1748857159761,19.168,2484.8,2484.5,2.0156]
[1748857159967,19.97255,2484.8,2484.5,2.0156]
[1748857160365,19.97255,2484.8,2484.4,7.59283367]
[1748857160366,19.168,2484.8,2484.4,3.21383367]
[1748857160666,2.90747,2484.7,2484.6,0.80457]
[1748857161062,2.1029,2484.7,2484.6,0.80457]
[1748857161569,0.7344,2485.3,2484.6,5.0]
[1748857161863,5.3107,2485.4,2484.8,2.01122]
[1748857162057,2.1029,2485.4,2485.3,0.80435]
[1748857162261,0.80437,2485.3,2485.2,0.80436]
[1748857162668,21.2709,2485.4,2484.9,3.32646]
[1748857163068,22.07525,2485.4,2485.3,0.80435]
[1748857163471,21.2709,2485.4,2485.3,0.80435]
[1748857163866,2.90722,2485.4,2485.3,0.80435]
[1748857164073,22.07622,2485.4,2485.3,0.80435]
[1748857164672,22.07622,2485.4,2485.2,0.80436]
[1748857164873,22.07622,2485.4,2485.3,0.80435]
[1748857166073,21.2719,2485.4,2485.3,0.80435]
[1748857167170,22.07622,2485.4,2485.3,0.80435]
[1748857167371,21.2719,2485.4,2485.3,0.80435]
[1748857169472,22.07622,2485.4,2485.3,0.80435]
[1748857169672,21.2719,2485.4,2484.9,5.72493754]
[1748857169867,0.80436,2485.3,2485.2,0.80436]
[1748857170173,2.10726,2485.3,2485.2,0.80436]
[1748857170366,0.8044,2485.2,2485.1,0.80441]
[1748857170566,1.3029,2485.2,2485.1,0.80441]
[1748857171780,2.10729,2485.2,2485.1,0.80441]
[1748857172273,1.3029,2485.2,2485.1,0.80441]
[1748857172475,19.8912,2485.4,2485.3,0.80435]
[1748857172670,21.2401,2485.4,2485.3,0.80435]
[1748857172971,2.87542,2485.4,2485.3,0.80435]
[1748857173776,22.04042,2485.4,2485.3,0.80435]
[1748857173971,0.80439,2485.2,2485.0,1.20362115]
[1748857174171,2.15334,2485.1,2485.0,0.80445]
[1748857175774,1.3489,2485.1,2485.0,0.80445]
[1748857176072,2.15332,2485.1,2485.0,0.80445]
[1748857176569,0.80446,2485.0,2484.9,0.80445]
[1748857177176,2.15334,2485.1,2485.0,0.80445]
[1748857177369,20.5119,2485.1,2485.0,0.80445]
[1748857177576,20.5119,2485.1,2484.8,7.80807802]
[1748857177577,19.163,2485.3,2485.2,0.80439]
[1748857178381,20.4668,2485.3,2485.2,0.80439]
[1748857178773,20.4668,2485.3,2484.8,6.42353265]
[1748857179081,21.27117,2485.3,2485.2,0.80439]
[1748857179379,20.4668,2485.3,2485.2,0.80439]
[1748857179977,21.27115,2485.3,2485.2,0.80439]
[1748857180386,0.80443,2485.2,2485.1,0.80441]
[1748857180583,0.80444,2485.1,2485.0,0.80442]
[1748857180879,0.80444,2485.1,2484.9,1.3413]
[1748857180880,0.80445,2485.0,2484.9,0.80446]
[1748857182580,0.80448,2484.9,2484.8,5.21712341]
[1748857182779,1.3433,2484.9,2484.8,5.21712341]
[1748857183183,2.14778,2484.9,2484.8,5.21712341]
[1748857183483,0.80448,2485.0,2484.9,0.80447]
[1748857183883,0.80448,2484.9,2484.8,5.21711341]
[1748857184585,0.80448,2485.0,2484.9,0.80447]
[1748857186279,2.14774,2485.1,2485.0,0.80445]
[1748857186786,0.80445,2485.0,2484.9,2.08856]
[1748857186985,0.80445,2485.0,2484.9,1.2841]
[1748857187185,0.80448,2484.9,2484.8,4.41287014]
[1748857187478,0.80448,2485.0,2484.8,4.41287014]
[1748857187683,0.80448,2485.0,2484.9,0.80446]
[1748857187885,0.80448,2484.9,2484.8,5.21736014]
[1748857188088,0.80448,2484.9,2484.8,4.41287014]
[1748857188383,0.80448,2484.9,2484.8,5.21739014]
[1748857188785,19.159,2485.0,2484.9,0.80448]
[1748857188985,19.96345,2485.0,2484.9,0.80448]
[1748857189190,2.14772,2485.1,2485.0,0.80445]
[1748857189388,21.30672,2485.1,2485.0,0.80445]
[1748857189587,19.96342,2485.1,2485.0,0.80445]
[1748857189990,19.159,2485.1,2485.0,0.80445]
[1748857190188,19.96342,2485.1,2485.0,0.80445]
[1748857191592,19.159,2485.1,2485.0,0.80445]
[1748857191886,19.96241,2485.2,2485.1,0.80442]
[1748857192492,2.14388,2485.3,2485.2,0.80439]
[1748857192691,21.30188,2485.3,2485.2,0.80439]
[1748857193387,21.30189,2485.3,2485.2,0.80439]
[1748857194289,21.30089,2485.3,2485.2,0.80439]
[1748857194688,0.80441,2485.2,2485.1,0.80439]
[1748857195087,0.80442,2485.1,2485.0,1.3427]
[1748857195294,0.80445,2485.0,2484.9,6.28934198]
[1748857195489,0.80445,2485.0,2484.9,0.80446]
[1748857196196,0.80448,2484.9,2484.8,5.21813198]
[1748857196994,0.80447,2485.0,2484.9,0.80446]
[1748857197996,20.4929,2485.1,2485.0,0.80445]
[1748857198196,19.155,2485.1,2485.0,0.80445]
[1748857198388,19.95942,2485.1,2485.0,0.80445]
[1748857200097,19.155,2485.1,2485.0,0.80445]
[1748857200493,2.02432055,2485.4,2485.3,0.80435]
[1748857200694,19.16022055,2485.4,2485.2,0.80437]
[1748857200904,19.16022055,2485.4,2485.3,0.80435]
[1748857201087,0.81056055,2485.4,2485.3,0.80435]
[1748857201393,0.80435,2485.3,2485.2,2.0103064]
[1748857202001,0.80439,2485.2,2485.1,1.2059564]
[1748857202297,2.17369,2485.2,2485.1,2.0103764]
[1748857203594,2.17369,2485.2,2485.1,1.2059564]
[1748857203792,5.38149,2485.2,2485.1,1.2059564]
[1748857203997,0.80442,2485.1,2485.0,1.2059564]
[1748857204198,2.17372,2485.1,2485.0,1.2059564]
[1748857204496,0.80445,2485.0,2484.9,1.2059564]
[1748857204801,0.80455,2484.7,2484.6,4.01987823]
[1748857204996,0.80455,2484.7,2484.6,2.41193636]
[1748857205191,0.80458,2484.6,2484.5,1.20629478]
[1748857205395,19.95558,2484.6,2484.5,1.20629478]
[1748857205595,0.80461,2484.5,2484.4,2.01694845]
[1748857205798,2.39634898,2485.1,2485.0,0.80445]
[1748857206101,0.80448,2484.9,2484.8,0.8045]
[1748857206395,1.3608,2485.0,2484.7,0.80453]
[1748857206601,0.80449,2484.9,2484.8,0.80451]
[1748857206803,0.80449,2484.9,2484.8,2.01006691]
[1748857207299,0.80449,2484.9,2484.8,1.20555691]
[1748857208101,0.80455,2484.7,2484.6,3.61806878]
[1748857208305,0.80455,2484.7,2484.6,2.01012691]
[1748857208502,0.80455,2484.7,2484.6,0.80457]
[1748857209204,0.80458,2484.6,2484.5,4.41325092]
[1748857209407,23.16138,2484.6,2484.5,1.20545092]
[1748857209807,0.80461,2484.5,2484.4,0.00603367]
[1748857210106,2.19201,2484.5,2484.4,0.00603367]
[1748857210405,0.80478,2484.0,2483.9,2.71166092]
[1748857210606,0.80478,2484.0,2483.9,1.90685092]
[1748857210799,2.1317,2484.2,2483.9,1.90685092]
[1748857211107,19.15,2484.2,2484.1,4.01254]
[1748857212007,19.15,2484.2,2484.0,1.20545092]
[1748857212202,0.80474,2484.1,2484.0,0.80476]
[1748857212503,2.20624,2484.1,2484.0,0.80476]
[1748857213008,0.80478,2484.0,2483.9,1.51223367]
[1748857213206,1.4015,2484.0,2483.9,1.51223367]
[1748857213402,2.20628,2484.0,2483.9,1.51223367]
[1748857213708,2.20628,2484.0,2483.9,0.81083367]
[1748857214008,2.20628,2484.0,2483.9,0.81084367]
[1748857214412,0.80476,2484.1,2484.0,0.80478]
[1748857214908,19.95474,2484.2,2484.1,0.80474]
[1748857215107,19.15,2484.2,2484.1,0.80474]
[1748857215510,19.95471,2484.2,2484.1,0.80474]
[1748857216002,2.1955,2484.3,2484.2,0.80471]
[1748857216207,21.3445,2484.3,2484.2,0.80471]
[1748857217610,2.19548,2484.3,2484.2,0.80471]
[1748857218610,0.80473,2484.2,2484.1,0.80472]
[1748857218815,2.16633,2484.2,2484.1,0.80472]
[1748857220210,2.16633,2484.2,2484.1,0.80474]
[1748857221116,1.3616,2484.2,2483.9,0.00603367]
[1748857221304,0.80478,2484.0,2483.9,0.81082367]
[1748857221504,0.80478,2484.0,2483.9,0.00603367]
[1748857221820,4.01258,2484.0,2483.9,0.00603367]
[1748857222617,11.09598,2484.0,2483.9,0.00603367]
[1748857222817,6.09598,2484.0,2483.9,0.00603367]
[1748857224310,0.80495,2483.5,2483.4,0.80495]
[1748857224510,19.147,2483.5,2483.4,0.80495]
[1748857224903,21.1978,2483.5,2483.4,0.80495]
[1748857231822,22.00274,2483.5,2483.4,0.80495]
[1748857232116,21.1978,2483.5,2483.4,0.80495]
[1748857232621,19.8861,2483.5,2483.4,0.80495]
[1748857233824,20.69104,2483.5,2483.4,0.80495]
[1748857234019,19.8861,2483.5,2483.4,0.80495]
[1748857235223,1.3165,2483.7,2483.6,0.8049]
[1748857235425,2.0218,2484.0,2483.9,0.80481]
[1748857235924,0.80468,2484.3,2484.2,0.80469]
[1748857236116,0.80475,2484.2,2484.1,0.80472]
[1748857236317,0.80477,2484.1,2484.0,0.80475]
[1748857236514,0.80472,2484.2,2484.1,0.80471]
[1748857236720,2.10772,2484.2,2484.1,0.80471]
[1748857236929,1.303,2484.2,2484.1,0.80471]
[1748857237420,20.448,2484.2,2484.1,0.80471]
[1748857239120,1.303,2484.2,2484.1,0.80471]
[1748857239829,1.303,2484.2,2483.9,0.80479]
[1748857240026,4.01257,2484.1,2483.8,0.7221]
[1748857240226,0.80477,2484.1,2484.0,0.80478]
[1748857240932,0.80484,2483.9,2483.7,0.80485]
[1748857241119,0.6993,2483.8,2483.7,0.80485]
[1748857241826,1.50414,2483.8,2483.7,0.80485]
[1748857244325,0.6993,2483.8,2483.5,1.2035269]
[1748857244529,0.6993,2483.8,2483.4,5.0752]
[1748857244530,3.9071,2483.8,2483.4,5.0752]
[1748857244730,3.9071,2483.8,2483.4,5.88016]
[1748857244926,5.91923,2483.8,2483.4,5.88016]
[1748857245131,0.80494,2483.5,2483.4,1.52016]
[1748857245630,0.80493,2483.6,2483.4,1.52016]
[1748857245829,3.9071,2483.8,2483.4,2.88106]
[1748857246032,0.80489,2483.7,2483.6,0.80488]
[1748857246528,0.80492,2483.6,2483.5,0.80491]
[1748857249325,0.80492,2483.6,2483.5,2.15691]
[1748857249633,0.80492,2483.6,2483.5,2.87021]
[1748857250129,0.80492,2483.6,2483.5,2.0653]
[1748857250327,0.80494,2483.5,2483.4,5.12764887]
[1748857250527,0.80494,2483.5,2483.4,5.93299555]
[1748857251028,0.80494,2483.5,2483.4,5.12802555]
[1748857251428,0.80494,2483.5,2483.4,5.93299555]
[1748857252135,0.80494,2483.5,2483.4,4.41282555]
[1748857252432,0.80494,2483.5,2483.4,3.2078]
[1748857253232,0.80494,2483.5,2483.4,4.01277]
[1748857254033,0.80497,2483.4,2483.3,1.20555871]
[1748857254733,0.80497,2483.4,2483.3,2.01055871]
[1748857255137,0.80497,2483.5,2483.4,0.80494]
[1748857255737,1.3989,2483.6,2483.5,0.80494]
[1748857256227,2.2038,2483.6,2483.5,0.80494]
[1748857257935,0.80494,2483.5,2483.4,3.36098806]
[1748857259131,0.80493,2483.6,2483.5,0.80491]
[1748857259837,19.93893,2483.6,2483.5,0.80491]
[1748857260434,19.93789,2483.7,2483.6,0.8049]
[1748857260624,0.80494,2483.6,2483.5,0.80493]
[1748857260934,0.80494,2483.6,2483.5,2.18553]
[1748857261730,0.80494,2483.6,2483.5,1.3806]
[1748857261936,0.80494,2483.5,2483.4,5.21818948]
[1748857262735,0.80493,2483.6,2483.5,0.80491]
[1748857262938,21.2442,2483.7,2483.6,0.8049]
[1748857263129,21.2432,2483.7,2483.6,0.8049]
[1748857263439,0.8049,2483.7,2483.6,0.8049]
[1748857263647,19.9359,2483.7,2483.6,0.8049]
[1748857264136,0.8049,2483.7,2483.6,0.8049]
[1748857264325,0.8049,2483.7,2483.6,2.1715]
[1748857264529,3.21383367,2484.4,2483.6,1.3666]
[1748857264837,0.80481,2483.9,2483.8,4.01261]
[1748857265534,0.80484,2483.8,2483.7,2.72382468]
[1748857265740,2.19274,2483.8,2483.7,2.72382468]
[1748857265931,0.80487,2483.7,2483.6,1.20547468]
[1748857266339,0.7424,2483.7,2483.6,2.01037468]
[1748857266633,5.21967,2484.1,2483.5,1.20547468]
[1748857266839,19.8714,2484.0,2483.9,0.80481]
[1748857267040,0.80482,2483.9,2483.8,0.80482]
[1748857267347,22.05481,2484.0,2483.9,0.80481]
[1748857267838,0.80484,2483.8,2483.7,2.93815]
[1748857268742,0.80484,2483.8,2483.7,0.80485]
[1748857268939,0.80487,2483.7,2483.6,2.01036068]
[1748857269237,0.80487,2483.7,2483.6,1.20548068]
[1748857270335,1.53477,2483.7,2483.6,1.20548068]
[1748857270531,2.84667,2483.7,2483.6,1.20548068]
[1748857270734,2.84667,2483.7,2483.3,0.80498]
[1748857270735,0.80494,2483.5,2483.4,1.20548068]
[1748857271344,0.80497,2483.4,2483.3,2.01045068]
[1748857271537,2.11685,2483.5,2483.4,0.80497]
[1748857272242,0.805,2483.3,2483.2,2.4164015]
[1748857272438,0.80499,2483.4,2483.3,0.805]
[1748857272636,0.805,2483.3,2483.2,2.4164015]
[1748857272837,2.1088,2483.3,2483.2,2.4164015]
[1748857274142,2.1088,2483.3,2483.2,0.81105367]
[1748857274341,2.1088,2483.3,2483.2,0.00603367]
[1748857274531,2.1088,2483.3,2483.2,1.21258248]
[1748857274736,2.1088,2483.3,2483.2,0.00603367]
[1748857285249,3.913,2483.6,2483.2,0.00603367]
[1748857285448,0.805,2483.3,2483.2,0.81105367]
[1748857285857,0.80499,2483.4,2483.3,0.80498]
[1748857286158,0.80495,2483.5,2483.4,0.80496]
[1748857286360,19.121,2483.5,2483.3,0.805]
[1748857286752,0.805,2483.4,2483.3,0.805]
[1748857287051,0.80494,2483.5,2483.4,0.80497]
[1748857287252,19.92494,2483.5,2483.4,0.80497]
[1748857287451,3.913,2483.6,2483.5,0.80494]
[1748857287656,23.033,2483.6,2483.5,0.80494]
[1748857287854,23.8379,2483.6,2483.5,0.80494]
[1748857288549,23.83793,2483.6,2483.4,0.80495]
[1748857288745,0.80494,2483.5,2483.4,0.80495]
[1748857289362,23.83593,2483.6,2483.4,0.80495]
[1748857289559,23.83593,2483.6,2483.5,0.80494]
[1748857289853,0.805,2483.3,2483.2,0.00603367]
[1748857290860,1.2789,2483.5,2483.4,0.80497]
[1748857291160,0.80494,2483.5,2483.4,0.80495]
[1748857291355,4.7179,2483.6,2483.5,0.80494]
[1748857291556,23.03,2483.6,2483.5,0.80494]
[1748857291757,23.8349,2483.6,2483.5,0.80494]
[1748857292061,0.80495,2483.5,2483.4,0.80494]
[1748857292558,0.80495,2483.5,2483.4,2.13584]
[1748857292855,0.80497,2483.4,2483.3,0.7063]
[1748857293050,0.80497,2483.4,2483.3,1.5113]
[1748857295764,0.80497,2483.4,2483.3,0.7063]
[1748857297459,0.805,2483.3,2483.2,0.00603367]
[1748857297766,4.0128,2483.3,2483.2,0.00603367]
[1748857297969,0.80498,2483.4,2483.3,0.80497]
[1748857298165,23.03,2483.6,2483.5,0.80494]
[1748857298360,0.80494,2483.5,2483.3,1.3115]
[1748857298666,0.80494,2483.5,2483.4,1.53464]
[1748857298965,23.024,2483.6,2483.5,0.80494]
[1748857298966,22.3188,2483.6,2483.5,0.80494]
[1748857299165,22.3188,2483.6,2483.5,2.11644]
[1748857299461,3.2078,2483.6,2483.5,2.79574]
[1748857300363,4.0127,2483.6,2483.5,2.79574]
[1748857300859,22.3178,2483.9,2483.5,7.79574]
[1748857301068,0.6974,2484.2,2483.8,5.21988]
[1748857301259,0.80468,2484.3,2483.9,2.0003]
[1748857301461,0.80473,2484.2,2484.1,0.80473]
[1748857301662,0.80474,2484.1,2484.0,0.7115]
[1748857307863,0.80477,2484.0,2483.9,0.7336]
[1748857308167,0.80487,2483.7,2483.6,4.40981238]
[1748857308363,0.80485,2483.8,2483.6,0.7019]
[1748857308576,0.80485,2483.8,2483.7,0.80487]
[1748857308771,0.80485,2483.8,2483.6,0.7019]
[1748857308971,0.80485,2483.8,2483.7,0.80487]
[1748857309169,2.75924,2483.9,2483.7,0.80485]
[1748857309370,19.90582,2483.9,2483.8,0.80484]
[1748857309771,0.80485,2483.8,2483.7,0.80485]
[1748857310166,0.80487,2483.7,2483.6,4.71458]
[1748857310371,0.80487,2483.7,2483.6,0.7019]
[1748857310768,0.80487,2483.7,2483.6,1.5068]
[1748857311072,0.80487,2483.7,2483.6,0.7019]
[1748857311675,0.80487,2483.7,2483.6,1.5068]
[1748857313875,0.6665,2483.8,2483.6,1.5068]
[1748857313876,1.47136,2483.8,2483.7,0.80487]
[1748857314276,0.80487,2483.7,2483.6,1.50678]
[1748857316179,1.47136,2483.8,2483.7,0.80487]
[1748857318781,2.86966,2483.8,2483.7,0.80487]
[1748857319073,0.80487,2483.7,2483.6,1.50677]
[1748857319272,2.0648,2483.8,2483.7,0.80487]
[1748857319671,0.6665,2483.8,2483.7,0.80487]
[1748857319871,19.90183,2483.9,2483.8,0.80484]
[1748857320475,19.90181,2483.9,2483.8,0.80484]
[1748857320879,21.30011,2483.9,2483.8,0.80484]
[1748857321877,0.80487,2483.8,2483.7,0.80485]
[1748857322183,0.80487,2483.8,2483.6,4.71458]
[1748857322184,0.80487,2483.7,2483.6,4.71458]
[1748857322675,0.80487,2483.7,2483.6,5.91815127]
[1748857322875,2.09196,2483.8,2483.7,0.80487]
[1748857324280,1.2871,2483.8,2483.7,0.80487]
[1748857325080,2.09194,2483.8,2483.7,0.80487]
[1748857326487,0.80487,2483.7,2483.6,1.2040521]
[1748857326677,1.4038,2483.7,2483.5,2.0089621]
[1748857326878,0.6798,2483.6,2483.5,0.80491]
[1748857327279,0.6798,2483.6,2483.5,2.01003905]
[1748857328286,1.46873,2483.9,2483.8,0.80484]
[1748857328476,0.8049,2483.7,2483.6,0.80489]
[1748857329083,0.8049,2483.6,2483.5,4.02753905]
[1748857329577,0.8049,2483.6,2483.5,2.01003905]
[1748857329782,0.8049,2483.6,2483.5,1.20512905]
[1748857329972,0.8049,2483.6,2483.5,2.01006905]
[1748857330177,2.1247,2483.6,2483.5,1.20512905]
[1748857330679,0.80494,2483.5,2483.4,1.20512905]
[1748857330882,0.80497,2483.4,2483.3,4.01278]
[1748857332182,0.805,2483.3,2483.2,1.60941533]
[1748857332391,2.8801,2483.3,2483.2,0.00603367]
[1748857332882,0.80507,2483.1,2483.0,1.20075686]
[1748857333078,4.01287,2483.1,2483.0,1.20075686]
[1748857333279,0.80507,2483.1,2483.0,2.00584686]
[1748857333482,0.80507,2483.1,2483.0,1.20075686]
[1748857333483,23.09487,2483.1,2483.0,1.20075686]
[1748857336589,4.01287,2483.1,2483.0,1.20075686]
[1748857336886,23.09487,2483.1,2483.0,1.20075686]
[1748857342193,23.09187,2483.1,2483.0,1.20075686]
[1748857343296,4.01287,2483.1,2483.0,1.20075686]
[1748857343490,23.09187,2483.1,2483.0,1.20075686]
[1748857343997,3.2078,2483.1,2483.0,2.00585686]
[1748857344192,3.2078,2483.1,2483.0,2.68065686]
[1748857344402,4.01287,2483.1,2483.0,2.68065686]
[1748857344695,3.2078,2483.1,2483.0,2.68065686]
[1748857345089,4.01287,2483.1,2483.0,2.68065686]
[1748857345291,4.01287,2483.1,2483.0,4.03145686]
[1748857345988,4.01287,2483.1,2483.0,3.22635686]
[1748857346183,4.01287,2483.1,2483.0,1.87555686]
[1748857346389,5.30637,2483.1,2483.0,1.20075686]
[1748857350292,24.38037,2483.1,2483.0,1.20075686]
[1748857353498,0.80513,2482.9,2482.8,0.00603367]
[1748857354193,1.45963,2482.9,2482.8,0.00603367]
[1748857358191,19.87513,2482.9,2482.8,0.00603367]
[1748857358498,19.87513,2482.9,2482.8,1.38033367]
[1748857358794,0.80513,2482.9,2482.8,2.04853367]
[1748857358992,19.07,2482.9,2482.8,2.04853367]
[1748857359191,19.07,2482.9,2482.8,2.85369367]
[1748857359597,0.81112367,2483.1,2483.0,0.8051]
[1748857359897,19.88012367,2483.1,2483.0,0.8051]
[1748857360294,19.88012367,2483.1,2483.0,2.8356]
[1748857361297,0.81112367,2483.1,2483.0,2.8356]
[1748857361497,19.87912367,2483.1,2483.0,2.8356]
[1748857361998,19.87812367,2483.1,2483.0,2.8356]
[1748857362190,19.87812367,2483.1,2483.0,4.43898166]
[1748857363391,19.87812367,2483.1,2483.0,3.63388166]
[1748857365197,19.87812367,2483.1,2483.0,2.0305]
[1748857365399,19.87512367,2483.1,2483.0,2.0305]
[1748857365594,19.87512367,2483.1,2483.0,3.23632278]
[1748857366396,19.87512367,2483.1,2483.0,4.04142278]
[1748857366602,19.87512367,2483.1,2483.0,2.8356]
[1748857366802,19.87512367,2483.1,2483.0,4.04136664]
[1748857368702,0.00603367,2483.1,2483.0,2.8356]
[1748857369006,0.00603367,2483.1,2483.0,8.75098166]
[1748857369199,0.00603367,2483.1,2483.0,12.1476]
[1748857369401,3.2078,2483.7,2483.0,11.3425]
[1748857369601,5.58739504,2484.3,2483.7,2.01218]
[1748857369800,0.80472,2484.2,2484.1,0.80473]
[1748857369997,19.86472,2484.2,2484.1,0.80473]
[1748857370204,0.80476,2484.1,2484.0,0.80476]
[1748857370507,0.80476,2484.1,2484.0,0.80475]
[1748857370901,0.80476,2484.1,2483.8,3.85975007]
[1748857371104,0.80477,2484.0,2483.9,1.15722382]
[1748857371303,0.80477,2484.0,2483.9,1.96202382]
[1748857371703,0.80477,2484.0,2483.9,1.15722382]
[1748857372912,0.80477,2484.0,2483.8,0.6584]
[1748857372913,0.8048,2483.9,2483.8,0.6584]
[1748857373103,0.8048,2483.9,2483.8,1.81451563]
[1748857373104,2.8398,2483.9,2483.8,1.81451563]
[1748857373310,2.8398,2483.9,2483.8,1.15611563]
[1748857373500,0.80489,2483.7,2483.6,0.8049]
[1748857373811,0.80489,2483.7,2483.6,1.96069361]
[1748857374111,0.80487,2483.7,2483.6,1.96068361]
[1748857375111,0.80487,2483.7,2483.6,1.96043977]
[1748857375506,0.80486,2483.8,2483.7,0.80487]
[1748857375815,2.19146,2483.8,2483.7,1.15554977]
[1748857376410,2.19146,2483.8,2483.6,0.80488]
[1748857376611,2.19146,2483.8,2483.7,1.15511968]
[1748857377311,0.80487,2483.7,2483.6,0.80488]
[1748857377515,0.80487,2483.7,2483.6,1.95983482]
[1748857377904,0.80487,2483.7,2483.6,1.15495482]
[1748857378409,1.3866,2483.8,2483.6,1.95985482]
[1748857378709,2.19145,2483.8,2483.6,0.8049]
[1748857378907,0.80487,2483.7,2483.6,0.8049]